bitfinex/quotes_BTCUSD_20230831
["timestamp","ask_amount","ask_price","bid_price","bid_amount"]
[1693515774416,1.03119347,26041.0,26040.0,0.0501]
[1693515774754,1.03053347,26041.0,26040.0,0.0501]
[1693515774956,1.02969347,26041.0,26040.0,0.0121]
[1693515775310,1.03047347,26041.0,26040.0,0.0241]
[1693515775511,1.03269347,26041.0,26040.0,0.0241]
[1693515775816,1.03287347,26041.0,26040.0,0.0241]
[1693515776011,1.03251347,26041.0,26040.0,0.0241]
[1693515776358,0.76706791,26041.0,26040.0,0.0241]
[1693515776507,0.99118911,26041.0,26040.0,0.0241]
[1693515776698,0.77894791,26041.0,26040.0,0.0241]
[1693515776894,0.79220791,26041.0,26040.0,0.0241]
[1693515777078,1.04491644,26041.0,26040.0,0.0241]
[1693515777279,1.04185644,26041.0,26040.0,0.0241]
[1693515777586,1.22403918,26041.0,26040.0,0.0241]
[1693515777781,1.02943644,26041.0,26040.0,0.0241]
[1693515777920,1.20255918,26041.0,26040.0,0.0121]
[1693515778126,1.18491918,26041.0,26040.0,0.0121]
[1693515778328,1.19841918,26041.0,26040.0,0.0001]
[1693515778569,1.20267918,26041.0,26040.0,0.0001]
[1693515778772,1.19985918,26041.0,26040.0,0.0001]
[1693515778927,1.20015918,26041.0,26040.0,0.0001]
[1693515779266,1.19585146,26041.0,26040.0,0.0001]
[1693515779484,1.05941212,26041.0,26040.0,0.0001]
[1693515779721,1.05971212,26041.0,26040.0,0.0001]
[1693515779927,0.3197305,26040.0,26037.0,1.102279]
[1693515780138,0.15907988,26039.0,26037.0,1.102279]
[1693515780359,0.15907988,26039.0,26034.0,0.03152571]
[1693515780360,0.36768085,26038.0,26034.0,0.03152571]
[1693515780557,0.09115988,26037.0,26033.0,1.152351]
[1693515780765,0.36768085,26036.0,26033.0,1.152351]
[1693515780976,0.47232085,26036.0,26033.0,1.152351]
[1693515781356,0.0705,26035.0,26033.0,1.152351]
[1693515781572,0.36768085,26036.0,26033.0,1.18267843]
[1693515781773,0.36768085,26036.0,26033.0,1.18367843]
[1693515781907,0.36768085,26036.0,26033.0,1.75986943]
[1693515782478,0.1562,26037.0,26033.0,1.87806943]
[1693515782924,0.1562,26037.0,26033.0,1.90306943]
[1693515783544,0.1532,26037.0,26035.0,0.1182]
[1693515783755,0.3806997,26041.0,26036.0,2.7427]
[1693515783962,0.09115988,26041.0,26038.0,0.1182]
[1693515784172,0.2278997,26041.0,26039.0,1.728174]
[1693515784401,0.09115988,26041.0,26039.0,1.87524634]
[1693515784613,0.2278997,26041.0,26039.0,1.152116]
[1693515784824,0.15703988,26040.0,26039.0,0.576058]
[1693515785023,0.06528,26040.0,26039.0,0.576058]
[1693515785255,0.09115988,26041.0,26039.0,1.152116]
[1693515785487,0.09104988,26041.0,26039.0,1.164116]
[1693515785893,0.09104988,26041.0,26039.0,1.189116]
[1693515786482,0.09104988,26041.0,26039.0,1.177116]
[1693515786684,0.09104988,26041.0,26039.0,1.152116]
[1693515786900,0.09104988,26041.0,26039.0,1.189116]
[1693515787235,0.09104988,26041.0,26039.0,1.164116]
[1693515787443,0.09104988,26041.0,26039.0,1.176116]
[1693515787644,0.36768085,26040.0,26039.0,0.024]
[1693515788456,0.36768085,26040.0,26039.0,0.012]
[1693515788660,0.36768085,26040.0,26038.0,1.152134]
[1693515788865,0.36768085,26040.0,26039.0,0.025]
[1693515789308,0.36768085,26040.0,26039.0,0.601058]
[1693515789736,0.36768085,26040.0,26039.0,0.626058]
[1693515790231,0.09104988,26041.0,26039.0,1.320316]
[1693515790437,0.13673982,26042.0,26039.0,1.896374]
[1693515790843,0.13673982,26042.0,26039.0,1.320316]
[1693515791058,0.13673982,26042.0,26039.0,1.295316]
[1693515791262,0.07116,26043.0,26039.0,1.270316]
[1693515791458,0.31917814,26042.0,26039.0,1.282316]
[1693515791988,0.31917814,26042.0,26039.0,1.164116]
[1693515792195,0.38499814,26042.0,26039.0,1.164116]
[1693515792425,0.31917814,26042.0,26039.0,1.164116]
[1693515792754,0.31917814,26042.0,26039.0,1.152116]
[1693515793456,0.82702524,26043.0,26039.0,1.846374]
[1693515793457,0.29159063,26043.0,26039.0,1.846374]
[1693515793660,0.47397814,26043.0,26039.0,1.846374]
[1693515793865,0.13679063,26042.0,26039.0,1.846374]
[1693515794870,0.47697814,26043.0,26039.0,1.846374]
[1693515795063,0.47997814,26043.0,26039.0,1.728174]
[1693515795454,0.13679063,26042.0,26039.0,1.728174]
[1693515795659,0.22798491,26042.0,26039.0,1.740174]
[1693515795860,0.09119428,26042.0,26039.0,1.728174]
[1693515796067,0.09119428,26042.0,26039.0,1.740174]
[1693515796272,0.06468,26041.0,26039.0,1.164116]
[1693515796452,0.46780491,26042.0,26039.0,1.164116]
[1693515796698,0.46504491,26042.0,26039.0,1.164116]
[1693515796904,0.09119428,26041.0,26039.0,1.176116]
[1693515797112,0.09119428,26041.0,26039.0,1.164116]
[1693515797568,0.09119428,26041.0,26039.0,1.189116]
[1693515798424,0.09119428,26041.0,26039.0,1.177116]
[1693515798632,0.15671428,26041.0,26039.0,1.177116]
[1693515798784,0.15689428,26041.0,26039.0,1.202116]
[1693515798998,0.77922568,26041.0,26039.0,0.05]
[1693515799201,0.36448156,26040.0,26039.0,0.05]
[1693515799411,0.45777584,26040.0,26039.0,0.05]
[1693515799563,0.59384647,26040.0,26039.0,0.05]
[1693515799770,0.50301219,26040.0,26039.0,0.05]
[1693515800124,0.87513304,26040.0,26038.0,0.03060646]
[1693515800348,0.98775304,26040.0,26039.0,0.038]
[1693515800464,0.90609304,26040.0,26039.0,0.076]
[1693515800692,1.08431339,26040.0,26039.0,0.076]
[1693515800895,1.08401339,26040.0,26039.0,0.076]
[1693515801101,1.01469304,26040.0,26039.0,0.076]
[1693515801299,1.01715304,26040.0,26039.0,0.076]
[1693515801502,1.19990055,26040.0,26039.0,0.076]
[1693515801728,1.20403164,26040.0,26039.0,0.076]
[1693515801949,1.19431164,26040.0,26037.0,0.04239051]
[1693515802150,1.19431164,26040.0,26038.0,0.076]
[1693515802151,0.71394902,26039.0,26038.0,0.076]
[1693515802349,0.71394902,26039.0,26038.0,0.038]
[1693515802350,0.91815008,26039.0,26038.0,0.038]
[1693515802552,0.78310836,26039.0,26038.0,0.038]
[1693515802890,0.78310836,26039.0,26037.0,0.01127325]
[1693515802891,1.93966436,26039.0,26037.0,0.01127325]
[1693515803118,0.92233108,26038.0,26037.0,0.01227325]
[1693515803325,0.81155093,26038.0,26037.0,0.01227325]
[1693515803524,0.81131093,26038.0,26037.0,0.01127325]
[1693515803708,0.7200309,26038.0,26037.0,0.01127325]
[1693515803844,0.9936772,26038.0,26037.0,0.01127325]
[1693515804042,0.9941572,26038.0,26037.0,0.01127325]
[1693515804286,0.9943372,26038.0,26037.0,0.01127325]
[1693515804465,1.08670248,26038.0,26037.0,0.01127325]
[1693515804670,1.5882382,26038.0,26037.0,0.01127325]
[1693515804871,1.5882982,26038.0,26037.0,0.01127325]
[1693515805121,2.73084016,26038.0,26037.0,0.01127325]
[1693515805317,3.64158365,26038.0,26037.0,0.01127325]
[1693515805541,3.42679926,26038.0,26037.0,0.02427325]
[1693515805754,3.57216026,26038.0,26037.0,0.02427325]
[1693515805959,3.57108026,26038.0,26037.0,0.01127325]
[1693515806305,3.56988026,26038.0,26037.0,0.01227325]
[1693515806507,3.80095917,26038.0,26037.0,0.01227325]
[1693515806715,3.80095917,26038.0,26037.0,0.01127325]
[1693515806716,3.78559917,26038.0,26037.0,0.01127325]
[1693515806891,3.79095917,26038.0,26037.0,0.01727325]
[1693515807094,3.78783917,26038.0,26037.0,0.01727325]
[1693515807303,3.42024982,26038.0,26037.0,0.01727325]
[1693515807504,3.31112982,26038.0,26037.0,0.01727325]
[1693515807710,3.32072982,26038.0,26037.0,0.01727325]
[1693515807911,3.31820982,26038.0,26037.0,0.01727325]
[1693515808187,3.31844982,26038.0,26037.0,0.01727325]
[1693515808332,3.32204982,26038.0,26037.0,0.01727325]
[1693515808537,3.33668982,26038.0,26037.0,0.01727325]
[1693515808762,3.33644982,26038.0,26037.0,0.01727325]
[1693515808963,3.31256982,26038.0,26037.0,0.01727325]
[1693515809282,3.30860982,26038.0,26037.0,0.01727325]
[1693515809482,3.30272982,26038.0,26037.0,0.01727325]
[1693515809703,3.30308982,26038.0,26037.0,0.01727325]
[1693515809912,3.54902281,26038.0,26037.0,0.01727325]
[1693515810059,3.54698281,26038.0,26037.0,0.01727325]
[1693515810277,3.54710281,26038.0,26037.0,0.01727325]
[1693515810633,3.29264982,26038.0,26037.0,0.01727325]
[1693515810848,3.55457402,26038.0,26037.0,0.01727325]
[1693515811046,3.55481402,26038.0,26037.0,0.01727325]
[1693515811247,3.55721402,26038.0,26037.0,0.01727325]
[1693515811446,3.5553012,26038.0,26037.0,0.01727325]
[1693515811647,3.5515812,26038.0,26037.0,0.01727325]
[1693515811887,3.5512212,26038.0,26037.0,0.01727325]
[1693515812079,3.4045012,26038.0,26037.0,0.01727325]
[1693515812279,3.5380212,26038.0,26037.0,0.01727325]
[1693515812496,3.5385012,26038.0,26037.0,0.01727325]
[1693515812704,3.5401812,26038.0,26037.0,0.01727325]
[1693515812819,3.5439012,26038.0,26037.0,0.01727325]
[1693515813035,3.28652982,26038.0,26037.0,0.01727325]
[1693515813236,3.62206927,26038.0,26037.0,0.01727325]
[1693515813594,3.47558927,26038.0,26037.0,0.01727325]
[1693515813799,3.60550927,26038.0,26037.0,0.01727325]
[1693515813975,3.59014927,26038.0,26037.0,0.01727325]
[1693515814130,3.59062927,26038.0,26037.0,0.01727325]
[1693515814330,3.58582927,26038.0,26037.0,0.01727325]
[1693515814562,3.57874927,26038.0,26037.0,0.01727325]
[1693515814767,3.43468927,26038.0,26037.0,0.01727325]
[1693515814989,3.37294927,26038.0,26037.0,0.01727325]
[1693515815162,3.43366927,26038.0,26037.0,0.01727325]
[1693515815367,3.43150927,26038.0,26037.0,0.01727325]
[1693515815585,3.43300927,26038.0,26037.0,0.01727325]
[1693515815850,3.43558927,26038.0,26037.0,0.01727325]
[1693515816049,3.56962927,26038.0,26037.0,0.01727325]
[1693515816346,3.76282557,26038.0,26037.0,0.01727325]
[1693515816482,2.88136357,26038.0,26037.0,0.01727325]
[1693515816844,2.69650727,26038.0,26037.0,0.01727325]
[1693515817048,2.70550727,26038.0,26037.0,0.01727325]
[1693515817286,2.70544727,26038.0,26037.0,0.01727325]
[1693515817464,2.70154727,26038.0,26037.0,0.01727325]
[1693515817759,2.69860727,26038.0,26037.0,0.01727325]
[1693515817967,2.69860727,26038.0,26037.0,0.01127325]
[1693515817968,2.68742727,26038.0,26037.0,0.01127325]
[1693515818190,2.69070727,26038.0,26037.0,0.01427325]
[1693515818366,2.69974727,26038.0,26037.0,0.01627325]
[1693515818593,2.69500727,26038.0,26037.0,0.01627325]
[1693515818794,2.69142727,26038.0,26037.0,0.01327325]
[1693515818996,2.69678727,26038.0,26037.0,0.01527325]
[1693515819187,2.69648727,26038.0,26037.0,0.01527325]
[1693515819351,2.69654727,26038.0,26037.0,0.01527325]
[1693515819561,2.69690727,26038.0,26037.0,0.01527325]
[1693515819770,2.50926478,26038.0,26037.0,0.01527325]
[1693515819947,2.65356478,26038.0,26037.0,0.01527325]
[1693515820149,2.50896478,26038.0,26037.0,0.01527325]
[1693515820433,1.22608279,26038.0,26037.0,0.01527325]
[1693515820602,1.22758279,26038.0,26037.0,0.01527325]
[1693515820847,1.23028279,26038.0,26037.0,0.01527325]
[1693515821038,1.53832361,26038.0,26037.0,0.01527325]
[1693515821239,1.54114361,26038.0,26037.0,0.01527325]
[1693515821436,1.54384361,26038.0,26037.0,0.01527325]
[1693515821643,1.8950257,26038.0,26037.0,0.01527325]
[1693515821845,2.4711067,26038.0,26037.0,0.01527325]
[1693515821980,2.4712867,26038.0,26037.0,0.01527325]
[1693515822181,2.4713467,26038.0,26037.0,0.01527325]
[1693515822385,2.4665467,26038.0,26037.0,0.01527325]
[1693515822634,2.4672667,26038.0,26037.0,0.01527325]
[1693515822809,2.4666067,26038.0,26037.0,0.01527325]
[1693515822987,2.4679867,26038.0,26037.0,0.01527325]
[1693515823186,2.4678067,26038.0,26037.0,0.01527325]
[1693515823505,2.4670267,26038.0,26037.0,0.01527325]
[1693515823713,2.4675067,26038.0,26037.0,0.01527325]
[1693515824082,2.6011067,26038.0,26037.0,0.01527325]
[1693515824291,2.4691667,26038.0,26037.0,0.01527325]
[1693515824466,2.4692867,26038.0,26037.0,0.01527325]
[1693515824693,2.4691067,26038.0,26037.0,0.01527325]
[1693515824914,2.4691667,26038.0,26037.0,0.01527325]
[1693515825068,2.4689267,26038.0,26037.0,0.01527325]
[1693515825270,2.4686867,26038.0,26037.0,0.01527325]
[1693515825472,2.96526688,26038.0,26037.0,0.01527325]
[1693515825697,3.17942579,26038.0,26037.0,0.01527325]
[1693515825908,3.49225653,26038.0,26037.0,0.01527325]
[1693515826110,3.49845642,26038.0,26037.0,0.01527325]
[1693515826432,3.47274511,26038.0,26037.0,0.01527325]
[1693515826636,2.89270411,26038.0,26037.0,0.01527325]
[1693515826794,2.84986411,26038.0,26037.0,0.01527325]
[1693515826988,2.85646411,26038.0,26037.0,0.01527325]
[1693515827317,2.70820411,26038.0,26037.0,0.01527325]
[1693515827509,3.0348164,26038.0,26037.0,0.01527325]
[1693515827732,2.84566411,26038.0,26037.0,0.01527325]
[1693515827936,2.84614411,26038.0,26037.0,0.01527325]
[1693515828136,3.45390511,26038.0,26037.0,0.01527325]
[1693515828316,3.48090511,26038.0,26037.0,0.01527325]
[1693515828520,3.66981541,26038.0,26037.0,0.01527325]
[1693515828723,3.4732229,26038.0,26037.0,0.01527325]
[1693515828926,3.4854629,26038.0,26037.0,0.01527325]
[1693515829102,3.4867829,26038.0,26037.0,0.01527325]
[1693515829306,3.4847429,26038.0,26037.0,0.01527325]
[1693515829509,3.68026306,26038.0,26037.0,0.01527325]
[1693515829861,3.67882306,26038.0,26037.0,0.01527325]
[1693515830066,3.67774306,26038.0,26037.0,0.01527325]
[1693515830196,3.23542399,26038.0,26037.0,0.01527325]
[1693515830391,0.23273213,26037.0,26031.0,1.152466]
[1693515830782,0.5770613,26036.0,26031.0,1.152466]
[1693515831036,1.4116703,26036.0,26031.0,0.576233]
[1693515831213,0.11478,26035.0,26031.0,0.576233]
[1693515831441,0.36768085,26034.0,26031.0,0.576233]
[1693515831976,0.07284,26033.0,26031.0,0.577233]
[1693515832171,0.44022085,26033.0,26031.0,0.577233]
[1693515832372,0.44106085,26033.0,26031.0,0.577233]
[1693515832715,0.36768085,26033.0,26031.0,0.577233]
[1693515832873,0.0654,26032.0,26031.0,0.577233]
[1693515833080,0.0654,26032.0,26031.0,0.589233]
[1693515833262,0.3826426,26032.0,26031.0,0.001]
[1693515833465,0.3908626,26032.0,26031.0,0.026]
[1693515833674,0.3918826,26032.0,26031.0,0.025]
[1693515833919,0.3911026,26032.0,26031.0,0.025]
[1693515834099,0.3905026,26032.0,26031.0,0.025]
[1693515834300,0.3900826,26032.0,26031.0,0.025]
[1693515834498,0.3936226,26032.0,26031.0,0.037]
[1693515834765,0.6684512,26032.0,26031.0,0.037]
[1693515835101,0.6684512,26032.0,26025.0,0.2169]
[1693515835102,0.04,26031.0,26025.0,0.2169]
[1693515835355,0.1182,26026.0,26021.0,0.60717877]
[1693515835622,1.06345705,26025.0,26022.0,0.1829]
[1693515835880,0.59574085,26025.0,26021.0,1.18362477]
[1693515836084,0.09312,26024.0,26021.0,0.60717177]
[1693515836289,0.36768085,26023.0,26021.0,0.03072577]
[1693515836458,0.36768085,26023.0,26020.0,0.0001]
[1693515836459,0.1182,26022.0,26020.0,0.0001]
[1693515836658,0.58206085,26022.0,26020.0,0.0001]
[1693515836862,0.07956,26021.0,26020.0,0.0001]
[1693515837062,0.07884,26021.0,26020.0,0.0001]
[1693515837269,0.07878,26021.0,26020.0,0.0001]
[1693515837474,0.07836,26021.0,26020.0,0.03024727]
[1693515837625,0.07812,26021.0,26020.0,0.03024727]
[1693515837822,0.07494,26021.0,26020.0,0.03024727]
[1693515838023,0.07452,26021.0,26020.0,0.03024727]
[1693515838221,0.07434,26021.0,26020.0,0.03024727]
[1693515838467,0.07452,26021.0,26020.0,0.03024727]
[1693515838670,0.48588085,26022.0,26020.0,0.03024727]
[1693515838872,0.36768085,26022.0,26020.0,0.61472627]
[1693515839441,0.06474,26024.0,26021.0,0.1182]
[1693515839654,0.24918,26028.0,26020.0,1.91475661]
[1693515839655,0.07992,26029.0,26022.0,2.26405819]
[1693515839864,0.06858,26034.0,26026.0,0.02]
[1693515840095,1.50943063,26033.0,26028.0,1.847079]
[1693515840261,1.0767986,26032.0,26029.0,0.14707234]
[1693515840465,1.44447945,26032.0,26030.0,0.576254]
[1693515840671,1.44447945,26032.0,26030.0,0.72332634]
[1693515840672,0.36768085,26032.0,26030.0,0.72332634]
[1693515840872,0.36768085,26032.0,26030.0,0.576254]
[1693515841072,0.9786528,26031.0,26030.0,0.576254]
[1693515841226,0.9786528,26031.0,26029.0,0.576269]
[1693515841432,1.41515365,26031.0,26027.0,0.576319]
[1693515841627,1.0478928,26030.0,26027.0,0.576319]
[1693515841895,0.48588085,26031.0,26027.0,1.728967]
[1693515842047,1.01365458,26030.0,26027.0,1.723967]
[1693515842658,1.03365458,26030.0,26027.0,1.724967]
[1693515842910,0.02,26030.0,26027.0,1.724967]
[1693515843442,0.02,26030.0,26029.0,0.002]
[1693515843659,1.35935381,26030.0,26029.0,0.002]
[1693515843850,1.35935381,26030.0,26028.0,1.152579]
[1693515844114,0.68703343,26030.0,26028.0,1.152579]
[1693515844316,0.83962791,26029.0,26027.0,0.002]
[1693515844521,0.84094791,26029.0,26027.0,0.001]
[1693515844726,0.08388,26028.0,26025.0,0.76356]
[1693515844943,0.08388,26028.0,26025.0,0.1872]
[1693515844944,0.45096085,26028.0,26025.0,0.1872]
[1693515845142,0.45096085,26028.0,26023.0,1.152795]
[1693515845143,0.46608085,26028.0,26023.0,1.152795]
[1693515845351,0.36768085,26027.0,26023.0,1.18372165]
[1693515845553,0.69121018,26027.0,26023.0,1.18372165]
[1693515845750,0.07188,26026.0,26023.0,1.18372165]
[1693515845989,0.0714,26026.0,26025.0,0.006]
[1693515846291,0.23736933,26027.0,26023.0,1.18372165]
[1693515848500,0.44826085,26023.0,26021.0,0.57644]
[1693515848675,0.36768085,26023.0,26021.0,0.57644]
[1693515848878,0.06486,26022.0,26021.0,0.57644]
[1693515849085,0.44556085,26022.0,26020.0,0.21154727]
[1693515849284,0.45360085,26022.0,26021.0,0.003]
[1693515849438,0.36768085,26022.0,26021.0,0.003]
[1693515849638,0.36768085,26022.0,26021.0,0.022]
[1693515849869,0.36768085,26022.0,26021.0,0.003]
[1693515850244,0.37068085,26022.0,26021.0,0.003]
[1693515850815,0.37068085,26022.0,26020.0,0.0331]
[1693515850816,0.43914085,26022.0,26020.0,0.0331]
[1693515851021,0.07252,26022.0,26021.0,0.028]
[1693515851216,0.07006,26022.0,26021.0,0.028]
[1693515851371,0.18888,26022.0,26020.0,0.0331]
[1693515851574,0.1182,26021.0,26020.0,0.0331]
[1693515851803,0.1182,26021.0,26020.0,0.0001]
[1693515852001,0.57966085,26021.0,26020.0,0.0001]
[1693515852202,0.57846085,26021.0,26020.0,0.0001]
[1693515852383,0.57798085,26021.0,26020.0,0.0031]
[1693515852614,0.57546085,26021.0,26020.0,0.0031]
[1693515852818,0.58122085,26021.0,26020.0,0.0031]
[1693515853162,1.49091239,26021.0,26020.0,0.0031]
[1693515853340,2.09076939,26021.0,26020.0,0.0031]
[1693515853495,1.77853485,26021.0,26020.0,0.0031]
[1693515853738,4.65764767,26021.0,26020.0,0.0001]
[1693515854122,4.58350767,26021.0,26020.0,0.0001]
[1693515854327,0.462,26017.0,26012.0,0.0202]
[1693515854504,0.36768085,26015.0,26012.0,0.0202]
[1693515854715,0.694812,26014.0,26012.0,0.0202]
[1693515854910,0.36768085,26013.0,26012.0,0.0202]
[1693515855149,0.46662085,26013.0,26012.0,0.0202]
[1693515855331,0.58524085,26013.0,26012.0,0.0202]
[1693515855542,1.17609485,26013.0,26012.0,0.0202]
[1693515855734,1.45591267,26013.0,26012.0,0.0262]
[1693515855936,1.45579267,26013.0,26012.0,0.0232]
[1693515856167,1.45435267,26013.0,26012.0,0.0232]
[1693515856367,1.48417267,26013.0,26012.0,0.0262]
[1693515856619,1.48423267,26013.0,26012.0,0.0262]
[1693515856788,0.90621867,26013.0,26012.0,0.0232]
[1693515856999,0.61812085,26013.0,26012.0,0.0232]
[1693515857202,0.61812085,26013.0,26012.0,0.602856]
[1693515857203,0.41568085,26013.0,26012.0,0.602856]
[1693515857757,0.048,26013.0,26012.0,0.602856]
[1693515857969,0.048,26013.0,26012.0,2.307968]
[1693515857970,0.018,26013.0,26012.0,2.307968]
[1693515858167,0.0708,26020.0,26012.0,2.307968]
[1693515858341,0.36768085,26019.0,26013.0,0.14707234]
[1693515858562,0.44136085,26019.0,26014.0,2.306391]
[1693515858773,0.44136085,26019.0,26015.0,0.14707234]
[1693515858774,0.43284085,26019.0,26015.0,0.14707234]
[1693515858950,0.229452,26023.0,26016.0,1.887489]
[1693515859146,1.05368873,26022.0,26017.0,0.14707234]
[1693515859393,1.05368873,26022.0,26018.0,1.729536]
[1693515859595,1.05368873,26022.0,26018.0,2.45312434]
[1693515860389,0.828949,26026.0,26020.0,0.1578]
[1693515860390,0.1526,26026.0,26020.0,0.1578]
[1693515860593,1.44151203,26025.0,26021.0,2.45282834]
[1693515860796,1.07383118,26024.0,26021.0,2.45282834]
[1693515860952,1.07352188,26024.0,26021.0,2.45282834]
[1693515861217,0.36768085,26025.0,26021.0,2.305756]
[1693515861431,0.01,26022.0,26021.0,2.45282834]
[1693515861635,0.01,26022.0,26021.0,2.785756]
[1693515861846,1.07408,26031.0,26023.0,0.02]
[1693515862046,1.07408,26031.0,26025.0,2.305444]
[1693515862047,1.39845686,26030.0,26025.0,2.305444]
[1693515862252,1.03077601,26029.0,26026.0,0.14707234]
[1693515862459,1.39845686,26029.0,26027.0,1.15264]
[1693515862658,1.03077601,26028.0,26027.0,1.15264]
[1693515863790,1.03077601,26028.0,26027.0,1.728964]
[1693515864086,1.03077601,26028.0,26027.0,1.15264]
[1693515864646,1.03077601,26028.0,26027.0,1.15864]
[1693515865879,1.03077601,26028.0,26027.0,1.734964]
[1693515867432,1.0739,26031.0,26027.0,1.734964]
[1693515867433,1.03077601,26030.0,26027.0,1.734964]
[1693515867631,1.39845686,26030.0,26027.0,1.734964]
[1693515867844,1.03077601,26029.0,26027.0,1.734964]
[1693515868463,1.03077601,26029.0,26027.0,1.728964]
[1693515868672,1.03077601,26029.0,26027.0,1.729964]
[1693515869037,1.03877601,26029.0,26027.0,1.729964]
[1693515869837,1.03877601,26029.0,26027.0,1.728964]
[1693515870044,1.04677601,26029.0,26027.0,1.728964]
[1693515871580,0.016,26029.0,26027.0,1.728964]
[1693515872176,0.008,26029.0,26027.0,1.728964]
[1693515873208,0.016,26029.0,26027.0,1.728964]
[1693515873633,0.008,26029.0,26027.0,1.728964]
[1693515874072,1.10770787,26028.0,26027.0,1.758964]
[1693515874233,0.0774,26031.0,26027.0,1.758964]
[1693515874234,1.10770787,26030.0,26027.0,1.758964]
[1693515874441,1.10770787,26030.0,26027.0,1.753964]
[1693515874869,1.10770787,26030.0,26027.0,1.783964]
[1693515875206,1.10770787,26030.0,26027.0,1.758964]
[1693515875413,0.0705,26034.0,26029.0,0.02]
[1693515875615,1.47526784,26033.0,26030.0,2.45203234]
[1693515875789,1.10758699,26032.0,26030.0,2.45203234]
[1693515876021,1.10758699,26032.0,26030.0,2.30496]
[1693515877270,1.11558699,26032.0,26030.0,2.30496]
[1693515877477,1.10758699,26031.0,26030.0,2.30496]
[1693515879172,1.10758699,26031.0,26030.0,2.32996]
[1693515879374,1.10758699,26031.0,26030.0,2.33396]
[1693515879781,1.10758699,26032.0,26030.0,2.32996]
[1693515880003,1.10758699,26031.0,26030.0,2.32996]
[1693515880271,1.10758699,26031.0,26030.0,2.35996]
[1693515880519,0.14,26025.0,26018.0,0.18401593]
[1693515880720,0.978479,26020.0,26019.0,0.07844064]
[1693515880945,0.978479,26020.0,26012.0,0.0202]
[1693515880946,0.422,26016.0,26012.0,0.0202]
[1693515881142,0.696563,26017.0,26012.0,0.0202]
[1693515881143,1.98294885,26013.0,26012.0,0.0202]
[1693515881381,2.65958285,26013.0,26012.0,0.0202]
[1693515881598,4.16266663,26013.0,26012.0,0.0202]
[1693515881804,4.15918663,26013.0,26012.0,0.0202]
[1693515882012,4.15762663,26013.0,26012.0,0.0202]
[1693515882227,4.47162463,26013.0,26012.0,0.0202]
[1693515882440,4.49346463,26013.0,26012.0,0.0232]
[1693515882650,4.89705142,26013.0,26012.0,0.0232]
[1693515882850,4.86587142,26013.0,26012.0,0.0202]
[1693515883001,4.90169142,26013.0,26012.0,0.0202]
[1693515883205,4.91563142,26013.0,26012.0,0.0232]
[1693515883385,4.93635142,26013.0,26012.0,0.0232]
[1693515883585,4.89863142,26013.0,26012.0,0.0202]
[1693515883972,4.91997142,26013.0,26012.0,0.0232]
[1693515884165,4.91997142,26013.0,26012.0,0.0262]
[1693515884166,4.71812495,26013.0,26012.0,0.0262]
[1693515884358,4.68292495,26013.0,26012.0,0.0232]
[1693515884534,4.71448495,26013.0,26012.0,0.0262]
[1693515884731,4.93144495,26013.0,26012.0,0.0262]
[1693515884934,4.92892495,26013.0,26012.0,0.0262]
[1693515885158,4.70812495,26013.0,26012.0,0.0262]
[1693515885363,4.70644495,26013.0,26012.0,0.0262]
[1693515885566,4.69948495,26013.0,26012.0,0.0262]
[1693515885771,4.51763816,26013.0,26012.0,0.0262]
[1693515886000,7.20754253,26013.0,26012.0,0.0262]
[1693515886211,0.45568,26007.0,26003.0,0.10350236]
[1693515886428,0.1578,26005.0,26003.0,0.10350236]
[1693515886651,0.39568,26003.0,26000.0,0.0001]
[1693515886858,0.76336085,26001.0,26000.0,0.0001]
[1693515887017,1.49806085,26001.0,26000.0,0.0001]
[1693515887217,1.64562085,26001.0,26000.0,0.0001]
[1693515887425,1.78170085,26001.0,26000.0,0.0001]
[1693515887630,1.78350085,26001.0,26000.0,0.0001]
[1693515887837,1.78254085,26001.0,26000.0,0.0291]
[1693515888037,1.78686085,26001.0,26000.0,0.0291]
[1693515888247,2.37540085,26001.0,26000.0,0.0001]
[1693515888400,2.37540085,26001.0,26000.0,0.0031]
[1693515888401,2.44732085,26001.0,26000.0,0.0031]
[1693515888776,3.00678085,26001.0,26000.0,0.0001]
[1693515888942,3.00978085,26001.0,26000.0,0.0001]
[1693515889101,3.04618085,26001.0,26000.0,0.0031]
[1693515889305,3.05434085,26001.0,26000.0,0.0031]
[1693515889561,3.07154085,26001.0,26000.0,0.0061]
[1693515889764,3.05006085,26001.0,26000.0,0.0061]
[1693515889941,3.01750085,26001.0,26000.0,0.0031]
[1693515890144,3.02686085,26001.0,26000.0,0.0031]
[1693515890365,3.06602085,26001.0,26000.0,0.0061]
[1693515890724,3.01282085,26001.0,26000.0,0.0001]
[1693515890926,3.37294889,26001.0,26000.0,0.0001]
[1693515891062,3.40966889,26001.0,26000.0,0.0011]
[1693515891262,3.44386889,26001.0,26000.0,0.0011]
[1693515891535,3.43786889,26001.0,26000.0,0.0011]
[1693515891722,1.91819985,26001.0,26000.0,0.2512788]
[1693515891922,0.50039985,26001.0,26000.0,0.2512788]
[1693515892121,0.52763985,26001.0,26000.0,0.2512788]
[1693515892321,1.10471985,26001.0,26000.0,0.2502788]
[1693515892525,1.48325985,26001.0,26000.0,0.0001]
[1693515892880,0.97715985,26001.0,26000.0,0.30667825]
[1693515893077,0.54665985,26001.0,26000.0,0.30667825]
[1693515893281,0.53333985,26001.0,26000.0,0.30667825]
[1693515893435,0.53777985,26001.0,26000.0,0.30667825]
[1693515893641,0.53975985,26001.0,26000.0,0.30667825]
[1693515893841,0.53975985,26001.0,26000.0,0.30467825]
[1693515893842,0.46835985,26001.0,26000.0,0.30467825]
[1693515894258,0.50417985,26001.0,26000.0,0.30567825]
[1693515894599,0.14676,26005.0,26000.0,0.30567825]
[1693515894600,0.159,26006.0,26000.0,1.87794134]
[1693515894811,0.36768085,26005.0,26001.0,0.14707234]
[1693515895011,0.036,26001.0,26000.0,0.0011]
[1693515895213,1.7667,26001.0,26000.0,0.0011]
[1693515895416,2.65311096,26001.0,26000.0,0.0011]
[1693515895551,2.94107096,26001.0,26000.0,0.0111]
[1693515895750,3.05647096,26001.0,26000.0,0.0001]
[1693515895951,3.68569096,26001.0,26000.0,0.0001]
[1693515896175,3.45819096,26001.0,26000.0,0.0001]
[1693515896551,3.43075096,26001.0,26000.0,0.0001]
[1693515896728,3.45939096,26001.0,26000.0,0.0001]
[1693515896968,3.49779096,26001.0,26000.0,0.0011]
[1693515897089,3.49671096,26001.0,26000.0,0.0011]